fUSD/lending_fUSD_20260527
["ID","MTS","AMOUNT","RATE_DAILY","PERIOD"]
[423097716,1779841858000,-500.0,0.00039799,30]
[423097798,1779841859000,-150.0,0.00040704,120]
[423097808,1779841859000,-150.0,0.00040908,120]
[423097807,1779841859000,-150.61785619,0.00040902,2]
[423097797,1779841859000,-150.61785619,0.00040702,2]
[423097789,1779841859000,-1083.90794291,0.00040552,2]
[423097793,1779841859000,-4483.07,0.000406,14]
[423097794,1779841859000,-150.61785619,0.00040602,2]
[423097792,1779841859000,-333.5,0.00040559,120]
[423097785,1779841859000,-150.61785619,0.00040402,2]
[423097804,1779841859000,-1398.59088226,0.000409,120]
[423097796,1779841859000,-152.0,0.00040692,4]
[423097788,1779841859000,-578.5750456,0.00040507,60]
[423097805,1779841859000,-244.53998542,0.000409,60]
[423097801,1779841859000,-2405.59468701,0.0004085,28]
[423097799,1779841859000,-1520.38032964,0.0004074,2]
[423097803,1779841859000,-159.17,0.0004088,120]
[423097800,1779841859000,-150.61785619,0.00040802,2]
[423097821,1779841859000,-2400.0,0.00041,120]
[423097806,1779841859000,-358.1,0.000409,120]
[423097809,1779841859000,-400.0,0.0004092,30]
[423097810,1779841859000,-222.05893029,0.00040967,2]
[423097811,1779841859000,-1107.63007,0.00040999,30]
[423097813,1779841859000,-500.0,0.00040999,30]
[423097820,1779841859000,-2465.0,0.00041,120]
[423097812,1779841859000,-500.0,0.00040999,45]
[423097791,1779841859000,-862.73058502,0.00040552,2]
[423097802,1779841859000,-150.0,0.00040869,120]
[423097790,1779841859000,-4713.32825906,0.00040552,2]
[423097774,1779841859000,-156.0,0.00040305,120]
[423097787,1779841859000,-150.61785619,0.00040502,2]
[423097762,1779841859000,-150.61785619,0.00040202,2]
[423097760,1779841859000,-150.61785619,0.00040102,2]
[423097764,1779841859000,-156.0,0.00040204,120]
[423097765,1779841859000,-154.0,0.00040204,120]
[423097763,1779841859000,-153.0,0.00040204,120]
[423097759,1779841859000,-222.05893029,0.00040033,2]
[423097761,1779841859000,-300.0,0.0004012,30]
[423097767,1779841859000,-159.0,0.00040204,120]
[423097766,1779841859000,-157.0,0.00040204,120]
[423097768,1779841859000,-2027.4343972,0.00040217,2]
[423097772,1779841859000,-151.0,0.00040305,120]
[423097769,1779841859000,-630.77,0.00040286,120]
[423097795,1779841859000,-11550.31896507,0.00040636,15]
[423097770,1779841859000,-150.61785619,0.00040302,2]
[423097773,1779841859000,-161.0,0.00040305,120]
[423097775,1779841859000,-156.0,0.00040305,120]
[423097779,1779841859000,-159.17,0.0004031,120]
[423097780,1779841859000,-3451.64621189,0.00040334,7]
[423097776,1779841859000,-155.0,0.00040305,120]
[423097782,1779841859000,-150.0,0.00040382,120]
[423097778,1779841859000,-152.0,0.00040305,120]
[423097781,1779841859000,-600.0,0.00040356,60]
[423097777,1779841859000,-160.0,0.00040305,120]
[423097783,1779841859000,-3448.7038898,0.00040392,2]
[423097784,1779841859000,-2571.01364116,0.00040401,2]
[423097786,1779841859000,-2400.0,0.000405,120]
[423097771,1779841859000,-164.0,0.00040305,120]
[423097814,1779841859000,-500.0,0.00040999,45]
[423097825,1779841859000,-800.0,0.00041,45]
[423097815,1779841859000,-500.0,0.00040999,30]
[423097857,1779841859000,-351.41551866,0.00041095,10]
[423097851,1779841859000,-800.0,0.00041,45]
[423097849,1779841859000,-800.0,0.00041,45]
[423097856,1779841859000,-190948.97704739,0.00041094,120]
[423097859,1779841859000,-167.40455632,0.00041096,2]
[423097852,1779841859000,-800.0,0.00041,45]
[423097855,1779841859000,-11971.94165407,0.00041076,120]
[423097854,1779841859000,-1454.8,0.00041041,120]
[423097853,1779841859000,-150.61785619,0.00041002,2]
[423097860,1779841859000,-50000.0,0.00041096,35]
[423097863,1779841859000,-1000.0,0.00041096,60]
[423097862,1779841859000,-1000.0,0.00041096,60]
[423097858,1779841859000,-1864.47,0.00041095,2]
[423097861,1779841859000,-1000.0,0.00041096,60]
[423097864,1779841859000,-1000.0,0.00041096,60]
[423097866,1779841859000,-1000.0,0.00041096,60]
[423097870,1779841859000,-1000.0,0.00041096,60]
[423097867,1779841859000,-1000.0,0.00041096,60]
[423097871,1779841859000,-1000.0,0.00041096,60]
[423097868,1779841859000,-1000.0,0.00041096,60]
[423097869,1779841859000,-1000.0,0.00041096,60]
[423097872,1779841859000,-717.0,0.00041096,120]
[423097873,1779841859000,-162.15288563,0.00041096,60]
[423097874,1779841859000,-162.15288563,0.00041096,120]
[423097875,1779841859000,-2162.0,0.00041096,120]
[423097817,1779841859000,-488.87,0.00041,120]
[423097865,1779841859000,-1000.0,0.00041096,60]
[423097850,1779841859000,-800.0,0.00041,45]
[423097876,1779841859000,-177.47,0.000411,30]
[423097846,1779841859000,-800.0,0.00041,45]
[423097819,1779841859000,-180.0076308,0.00041,120]
[423097816,1779841859000,-1000.0,0.00041,120]
[423097818,1779841859000,-4929.36,0.00041,120]
[423097823,1779841859000,-800.0,0.00041,45]
[423097834,1779841859000,-500.0,0.00041,45]
[423097833,1779841859000,-500.0,0.00041,45]
[423097822,1779841859000,-800.0,0.00041,45]
[423097848,1779841859000,-800.0,0.00041,45]
[423097824,1779841859000,-800.0,0.00041,45]
[423097827,1779841859000,-800.0,0.00041,45]
[423097826,1779841859000,-800.0,0.00041,45]
[423097832,1779841859000,-500.0,0.00041,45]
[423097828,1779841859000,-800.0,0.00041,45]
[423097835,1779841859000,-500.0,0.00041,45]
[423097830,1779841859000,-500.0,0.00041,45]
[423097843,1779841859000,-800.0,0.00041,45]
[423097829,1779841859000,-800.0,0.00041,45]
[423097845,1779841859000,-800.0,0.00041,45]
[423097844,1779841859000,-800.0,0.00041,45]
[423097842,1779841859000,-800.0,0.00041,45]
[423097841,1779841859000,-800.0,0.00041,45]
[423097840,1779841859000,-800.0,0.00041,45]
[423097847,1779841859000,-703.38899956,0.00041,45]
[423097836,1779841859000,-500.0,0.00041,45]
[423097838,1779841859000,-500.0,0.00041,45]
[423097837,1779841859000,-500.0,0.00041,45]
[423097831,1779841859000,-500.0,0.00041,45]
[423097839,1779841859000,-500.0,0.00041,45]
[423097911,1779841860000,-177.31,0.000413,30]
[423097914,1779841860000,-150.61785619,0.00041302,2]
[423097913,1779841860000,-214.20724519,0.000413,30]
[423097919,1779841860000,-156.0,0.00041305,120]
[423097915,1779841860000,-164.0,0.00041305,120]
[423097904,1779841860000,-157.0,0.00041204,120]
[423097912,1779841860000,-3787.91,0.000413,120]
[423097908,1779841860000,-1864.47,0.00041249,2]
[423097909,1779841860000,-50000.0,0.0004125,120]
[423097906,1779841860000,-382541.92589041,0.00041231,120]
[423097910,1779841860000,-500.0,0.00041287,120]
[423097916,1779841860000,-151.0,0.00041305,120]
[423097932,1779841860000,-151.42,0.00041397,120]
[423097917,1779841860000,-161.0,0.00041305,120]
[423097931,1779841860000,-500.0,0.00041396,30]
[423097929,1779841860000,-1000.0,0.00041396,30]
[423097921,1779841860000,-160.0,0.00041305,120]
[423097920,1779841860000,-155.0,0.00041305,120]
[423097930,1779841860000,-500.0,0.00041396,30]
[423097926,1779841860000,-500.0,0.00041368,40]
[423097923,1779841860000,-4707.4013242,0.0004134,2]
[423097922,1779841860000,-152.0,0.00041305,120]
[423097924,1779841860000,-72746.12,0.0004135,120]
[423097927,1779841860000,-500.0,0.00041368,40]
[423097905,1779841860000,-159.0,0.00041204,120]
[423097918,1779841860000,-156.0,0.00041305,120]
[423097903,1779841860000,-154.0,0.00041204,120]
[423097889,1779841860000,-282.74024125,0.0004116,7]
[423097900,1779841860000,-150.61785619,0.00041202,2]
[423097925,1779841860000,-1000.0,0.00041368,40]
[423097884,1779841860000,-220.0,0.0004115,120]
[423097883,1779841860000,-154.1311558,0.0004115,7]
[423097881,1779841860000,-195427.67461245,0.00041145,120]
[423097878,1779841860000,-47883.16083535,0.00041122,15]
[423097877,1779841860000,-150.61785619,0.00041102,2]
[423097882,1779841860000,-222.16155804,0.0004115,7]
[423097880,1779841860000,-323.59305041,0.0004113,7]
[423097879,1779841860000,-372211.91179599,0.00041126,120]
[423097885,1779841860000,-874.56712682,0.0004115,120]
[423097887,1779841860000,-200.0,0.00041154,2]
[423097895,1779841860000,-500.0,0.00041199,60]
[423097886,1779841860000,-500.0,0.0004115,120]
[423097890,1779841860000,-177.18949819,0.00041162,7]
[423097894,1779841860000,-500.0,0.00041199,55]
[423097892,1779841860000,-1097.29439826,0.00041199,60]
[423097888,1779841860000,-239822.64997213,0.00041154,120]
[423097893,1779841860000,-500.0,0.00041199,60]
[423097896,1779841860000,-500.0,0.00041199,55]
[423097891,1779841860000,-600.0,0.00041178,120]
[423097898,1779841860000,-1000.0,0.000412,120]
[423097897,1779841860000,-4483.07,0.000412,14]
[423097899,1779841860000,-131411.0,0.000412,30]
[423097901,1779841860000,-153.0,0.00041204,120]
[423097902,1779841860000,-156.0,0.00041204,120]
[423097907,1779841860000,-1211.20017853,0.00041234,120]
[423097928,1779841860000,-1068.11,0.00041396,30]
[423097933,1779841860000,-150.61785619,0.00041402,2]
[423097936,1779841860000,-1000.0,0.00041499,120]
[423097965,1779841860000,-300.0,0.00041507,120]
[423097975,1779841860000,-300.0,0.00041507,120]
[423097967,1779841860000,-300.0,0.00041507,120]
[423097966,1779841860000,-300.0,0.00041507,120]
[423097970,1779841860000,-300.0,0.00041507,120]
[423097969,1779841860000,-300.0,0.00041507,120]
[423097968,1779841860000,-300.0,0.00041507,120]
[423097974,1779841860000,-300.0,0.00041507,120]
[423097971,1779841860000,-300.0,0.00041507,120]
[423097972,1779841860000,-300.0,0.00041507,120]
[423097973,1779841860000,-300.0,0.00041507,120]
[423097976,1779841860000,-300.0,0.00041507,120]
[423097979,1779841860000,-300.0,0.00041507,120]
[423097978,1779841860000,-300.0,0.00041507,120]
[423097984,1779841860000,-200.0,0.00041508,95]
[423097982,1779841860000,-175.419207,0.00041507,120]
[423097980,1779841860000,-1000.0,0.00041507,120]
[423097985,1779841860000,-599.60298507,0.00041508,95]
[423097986,1779841860000,-152.0,0.00041508,95]
[423097983,1779841860000,-1000.0,0.00041508,95]
[423097981,1779841860000,-1000.0,0.00041507,120]
[423097987,1779841860000,-181.08010149,0.00041508,95]
[423097988,1779841860000,-181.08010149,0.00041508,95]
[423097989,1779841860000,-151.0,0.00041508,95]
[423097990,1779841860000,-500.0,0.00041508,95]
[423097964,1779841860000,-300.0,0.00041507,120]
[423097962,1779841860000,-300.0,0.00041507,120]
[423097977,1779841860000,-300.0,0.00041507,120]
[423097961,1779841860000,-300.0,0.00041507,120]
[423097963,1779841860000,-300.0,0.00041507,120]
[423097935,1779841860000,-941.54051422,0.00041484,116]
[423097945,1779841860000,-194.72792766,0.00041499,45]
[423097944,1779841860000,-152.0,0.00041499,45]
[423097941,1779841860000,-152.0,0.00041499,120]
[423097937,1779841860000,-1000.0,0.00041499,45]
[423097939,1779841860000,-200.0,0.00041499,45]
[423097934,1779841860000,-159.17,0.0004145,120]
[423097938,1779841860000,-200.0,0.00041499,120]
[423097940,1779841860000,-609.59615704,0.00041499,120]
[423097942,1779841860000,-187.78006524,0.00041499,120]
[423097947,1779841860000,-192.66288592,0.00041499,45]
[423097952,1779841860000,-500.0,0.00041499,45]
[423097943,1779841860000,-187.78006524,0.00041499,120]
[423097959,1779841860000,-300.0,0.00041507,120]
[423097953,1779841860000,-2400.0,0.000415,120]
[423097960,1779841860000,-300.0,0.00041507,120]
[423097958,1779841860000,-300.0,0.00041507,120]
[423097951,1779841860000,-500.0,0.00041499,120]
[423097950,1779841860000,-500.0,0.00041499,45]
[423097949,1779841860000,-500.0,0.00041499,120]
[423097946,1779841860000,-151.0,0.00041499,120]
[423097954,1779841860000,-150.61785619,0.00041502,2]
[423097956,1779841860000,-300.0,0.00041507,120]
[423097955,1779841860000,-300.0,0.00041507,120]
[423097957,1779841860000,-300.0,0.00041507,120]
[423097948,1779841860000,-151.0,0.00041499,45]
[423098027,1779841861000,-600.0,0.00041726,120]
[423098025,1779841861000,-150.61785619,0.00041702,2]
[423098030,1779841861000,-330.0,0.00041781,92]
[423098029,1779841861000,-2356.47786177,0.00041767,120]
[423098028,1779841861000,-150.0,0.00041753,120]
[423098023,1779841861000,-100000.0,0.000417,60]
[423098031,1779841861000,-500.0,0.0004179,120]
[423098026,1779841861000,-2356.47786177,0.0004172,120]
[423098024,1779841861000,-400.0,0.000417,15]
[423098022,1779841861000,-403.15392471,0.000417,30]
[423098033,1779841861000,-1000.0,0.00041799,30]
[423098032,1779841861000,-1000.0,0.00041799,60]
[423098035,1779841861000,-168.3888056,0.00041799,30]
[423098047,1779841861000,-200.0,0.00041799,30]
[423098036,1779841861000,-1030.0,0.00041799,30]
[423098037,1779841861000,-162.380719,0.00041799,60]
[423098040,1779841861000,-200.0,0.00041799,60]
[423098044,1779841861000,-296.0,0.00041799,60]
[423098042,1779841861000,-666.72878,0.00041799,60]
[423098038,1779841861000,-7407.141672,0.00041799,60]
[423098043,1779841861000,-4270.57712429,0.00041799,30]
[423098039,1779841861000,-162.380719,0.00041799,60]
[423098041,1779841861000,-295.55323637,0.00041799,30]
[423098045,1779841861000,-168.3888056,0.00041799,30]
[423098046,1779841861000,-160.0,0.00041799,60]
[423098019,1779841861000,-1864.47,0.00041699,2]
[423098034,1779841861000,-162.380719,0.00041799,60]
[423098020,1779841861000,-157.58893018,0.000417,30]
[423097991,1779841861000,-500.0,0.00041508,95]
[423098016,1779841861000,-2356.47786177,0.00041673,120]
[423097992,1779841861000,-160.69147224,0.00041564,116]
[423098049,1779841861000,-211.00693183,0.00041799,60]
[423097997,1779841861000,-664.41917231,0.000416,30]
[423097993,1779841861000,-452.3817617,0.0004158,2]
[423097996,1779841861000,-1354.35,0.000416,120]
[423097994,1779841861000,-2356.47786177,0.0004158,120]
[423097995,1779841861000,-100000.0,0.000416,120]
[423097999,1779841861000,-11550.31896507,0.000416,15]
[423098009,1779841861000,-152.0,0.00041642,50]
[423097998,1779841861000,-400.0,0.000416,15]
[423098000,1779841861000,-150.61785619,0.00041602,2]
[423098008,1779841861000,-716.97946141,0.00041642,50]
[423098015,1779841861000,-500.0,0.00041642,50]
[423098002,1779841861000,-2356.47786177,0.00041627,120]
[423098004,1779841861000,-3594.76,0.0004163,2]
[423098003,1779841861000,-1864.47,0.0004163,2]
[423098007,1779841861000,-200.0,0.00041642,50]
[423098005,1779841861000,-1000.0,0.00041642,50]
[423098012,1779841861000,-174.61919141,0.00041642,50]
[423098010,1779841861000,-174.61919141,0.00041642,50]
[423098021,1779841861000,-624873.75736171,0.000417,30]
[423098011,1779841861000,-578.20924308,0.00041642,50]
[423098017,1779841861000,-1454.8,0.00041694,120]
[423098018,1779841861000,-1864.47,0.00041699,2]
[423098014,1779841861000,-500.0,0.00041642,50]
[423098013,1779841861000,-151.0,0.00041642,50]
[423098001,1779841861000,-769.5098512,0.00041619,2]
[423098055,1779841861000,-162.380719,0.00041799,60]
[423098006,1779841861000,-169.46794995,0.00041642,50]
[423098048,1779841861000,-691.39774486,0.00041799,30]
[423098083,1779841861000,-358.1,0.000419,120]
[423098091,1779841861000,-2405.59468701,0.000419,28]
[423098085,1779841861000,-222.05893029,0.000419,5]
[423098084,1779841861000,-23803.09709932,0.000419,30]
[423098092,1779841861000,-2571.01364116,0.000419,2]
[423098086,1779841861000,-47883.16083535,0.000419,15]
[423098088,1779841861000,-400.0,0.000419,15]
[423098087,1779841861000,-2282.48282855,0.000419,120]
[423098089,1779841861000,-1083.90794291,0.000419,2]
[423098090,1779841861000,-4713.32825906,0.000419,2]
[423098104,1779841861000,-529.37,0.00041917,120]
[423098094,1779841861000,-2356.47786177,0.00041907,120]
[423098081,1779841861000,-151.0,0.000419,60]
[423098105,1779841861000,-529.37,0.00041917,120]
[423098095,1779841861000,-150.0,0.00041912,120]
[423098101,1779841861000,-181.31718842,0.00041917,120]
[423098102,1779841861000,-170.78022207,0.00041917,120]
[423098096,1779841861000,-556.62462819,0.00041917,120]
[423098097,1779841861000,-181.99217871,0.00041917,120]
[423098099,1779841861000,-500.0,0.00041917,120]
[423098103,1779841861000,-529.37,0.00041917,120]
[423098098,1779841861000,-500.0,0.00041917,120]
[423098100,1779841861000,-588.63345311,0.00041917,120]
[423098106,1779841861000,-529.37,0.00041917,120]
[423098107,1779841861000,-529.37,0.00041917,120]
[423098050,1779841861000,-269.917619,0.00041799,60]
[423098093,1779841861000,-150.61785619,0.00041902,2]
[423098082,1779841861000,-1000.0,0.000419,120]
[423098108,1779841861000,-529.37,0.00041917,120]
[423098076,1779841861000,-20000.0,0.0004188,45]
[423098080,1779841861000,-100000.0,0.000419,120]
[423098053,1779841861000,-168.0031262,0.00041799,30]
[423098052,1779841861000,-162.380719,0.00041799,60]
[423098054,1779841861000,-159.31222815,0.00041799,60]
[423098057,1779841861000,-152.0,0.00041799,30]
[423098067,1779841861000,-1000.0,0.000418,30]
[423098058,1779841861000,-168.3888056,0.00041799,30]
[423098066,1779841861000,-500.0,0.00041799,30]
[423098056,1779841861000,-537.6845,0.00041799,60]
[423098063,1779841861000,-500.0,0.00041799,60]
[423098064,1779841861000,-500.0,0.00041799,30]
[423098060,1779841861000,-557.5788265,0.00041799,30]
[423098059,1779841861000,-151.0,0.00041799,60]
[423098051,1779841861000,-152.0,0.00041799,60]
[423098061,1779841861000,-168.3888056,0.00041799,30]
[423098078,1779841861000,-12136.54743191,0.0004188,85]
[423098065,1779841861000,-500.0,0.00041799,60]
[423098075,1779841861000,-2356.47786177,0.0004186,120]
[423098073,1779841861000,-200.0,0.00041841,120]
[423098072,1779841861000,-2356.47786177,0.00041813,120]
[423098074,1779841861000,-36197.65410155,0.0004185,120]
[423098077,1779841861000,-20000.0,0.0004188,75]
[423098070,1779841861000,-400.0,0.000418,15]
[423098069,1779841861000,-4483.07,0.000418,14]
[423098068,1779841861000,-4000.0,0.000418,14]
[423098062,1779841861000,-151.0,0.00041799,30]
[423098079,1779841861000,-1864.47,0.00041899,2]
[423098071,1779841861000,-150.61785619,0.00041802,2]
[423098148,1779841862000,-500.0,0.00041917,120]
[423098147,1779841862000,-500.0,0.00041917,120]
[423098146,1779841862000,-500.0,0.00041917,120]
[423098144,1779841862000,-500.0,0.00041917,120]
[423098143,1779841862000,-500.0,0.00041917,120]
[423098139,1779841862000,-500.0,0.00041917,120]
[423098138,1779841862000,-500.0,0.00041917,120]
[423098149,1779841862000,-500.0,0.00041917,120]
[423098141,1779841862000,-500.0,0.00041917,120]
[423098145,1779841862000,-500.0,0.00041917,120]
[423098137,1779841862000,-500.0,0.00041917,120]
[423098159,1779841862000,-20000.0,0.0004198,30]
[423098151,1779841862000,-757.38429372,0.00041917,120]
[423098152,1779841862000,-500.0,0.00041917,120]
[423098156,1779841862000,-200.0,0.0004194,2]
[423098158,1779841862000,-150.0,0.00041972,120]
[423098153,1779841862000,-500.0,0.00041917,120]
[423098157,1779841862000,-2356.47786177,0.00041953,120]
[423098155,1779841862000,-906.86,0.00041917,2]
[423098154,1779841862000,-610.87505059,0.00041917,120]
[423098169,1779841862000,-529.49,0.00041999,120]
[423098170,1779841862000,-500.0,0.00041999,120]
[423098136,1779841862000,-500.0,0.00041917,120]
[423098171,1779841862000,-503.05903676,0.00041999,120]
[423098150,1779841862000,-500.0,0.00041917,120]
[423098140,1779841862000,-500.0,0.00041917,120]
[423098124,1779841862000,-500.0,0.00041917,120]
[423098135,1779841862000,-500.0,0.00041917,120]
[423098168,1779841862000,-529.37,0.00041999,120]
[423098109,1779841862000,-529.37,0.00041917,120]
[423098111,1779841862000,-529.37,0.00041917,120]
[423098110,1779841862000,-529.37,0.00041917,120]
[423098112,1779841862000,-529.37,0.00041917,120]
[423098115,1779841862000,-529.37,0.00041917,120]
[423098119,1779841862000,-529.37,0.00041917,120]
[423098118,1779841862000,-529.37,0.00041917,120]
[423098113,1779841862000,-529.37,0.00041917,120]
[423098116,1779841862000,-529.37,0.00041917,120]
[423098117,1779841862000,-529.37,0.00041917,120]
[423098120,1779841862000,-529.37,0.00041917,120]
[423098121,1779841862000,-500.0,0.00041917,30]
[423098122,1779841862000,-500.0,0.00041917,30]
[423098123,1779841862000,-500.0,0.00041917,30]
[423098126,1779841862000,-500.0,0.00041917,120]
[423098127,1779841862000,-500.0,0.00041917,120]
[423098125,1779841862000,-500.0,0.00041917,120]
[423098129,1779841862000,-590.47754345,0.00041917,120]
[423098131,1779841862000,-158.58552403,0.00041917,120]
[423098128,1779841862000,-196.30877992,0.00041917,120]
[423098133,1779841862000,-500.0,0.00041917,120]
[423098130,1779841862000,-472.77056525,0.00041917,120]
[423098134,1779841862000,-500.0,0.00041917,120]
[423098132,1779841862000,-640.53,0.00041917,120]
[423098142,1779841862000,-500.0,0.00041917,120]
[423098161,1779841862000,-20000.0,0.0004198,65]
[423098114,1779841862000,-529.37,0.00041917,120]
[423098172,1779841862000,-1864.47,0.00041999,2]
[423098194,1779841862000,-151.0,0.00041999,120]
[423098198,1779841862000,-500.0,0.00041999,120]
[423098204,1779841862000,-152.0,0.00041999,45]
[423098197,1779841862000,-200.0,0.00041999,45]
[423098199,1779841862000,-642.94,0.00041999,45]
[423098205,1779841862000,-260.287,0.00041999,45]
[423098208,1779841862000,-518.5,0.00041999,45]
[423098206,1779841862000,-156.587,0.00041999,45]
[423098202,1779841862000,-151.0,0.00041999,120]
[423098203,1779841862000,-539.24,0.00041999,45]
[423098201,1779841862000,-200.0,0.00041999,45]
[423098200,1779841862000,-160.0,0.00041999,45]
[423098210,1779841862000,-156.587,0.00041999,45]
[423098220,1779841862000,-180.28800069,0.00042,120]
[423098209,1779841862000,-500.0,0.00041999,120]
[423098211,1779841862000,-151.0,0.00041999,45]
[423098212,1779841862000,-518.5,0.00041999,45]
[423098217,1779841862000,-363.12000829,0.00042,120]
[423098219,1779841862000,-1000000.0,0.00042,120]
[423098216,1779841862000,-500.0,0.00041999,45]
[423098214,1779841862000,-500.0,0.00041999,45]
[423098213,1779841862000,-500.0,0.00041999,120]
[423098218,1779841862000,-909938.33766047,0.00042,120]
[423098215,1779841862000,-500.0,0.00041999,120]
[423098167,1779841862000,-529.37,0.00041999,120]
[423098193,1779841862000,-152.0,0.00041999,120]
[423098191,1779841862000,-200.0,0.00041999,120]
[423098207,1779841862000,-151.0,0.00041999,120]
[423098195,1779841862000,-251.0,0.00041999,120]
[423098164,1779841862000,-182.95512656,0.00041999,2]
[423098192,1779841862000,-7142.856,0.00041999,45]
[423098162,1779841862000,-3451.64621189,0.0004199,7]
[423098160,1779841862000,-20000.0,0.0004198,55]
[423098163,1779841862000,-529.37,0.00041998,120]
[423098166,1779841862000,-529.37,0.00041999,120]
[423098173,1779841862000,-1864.47,0.00041999,2]
[423098175,1779841862000,-1864.47,0.00041999,2]
[423098174,1779841862000,-1864.47,0.00041999,2]
[423098176,1779841862000,-1864.47,0.00041999,2]
[423098177,1779841862000,-1864.64,0.00041999,2]
[423098183,1779841862000,-151.0,0.00041999,120]
[423098180,1779841862000,-151.0,0.00041999,120]
[423098165,1779841862000,-529.37,0.00041999,120]
[423098182,1779841862000,-156.587,0.00041999,45]
[423098184,1779841862000,-156.587,0.00041999,45]
[423098187,1779841862000,-200.0,0.00041999,120]
[423098189,1779841862000,-620.0,0.00041999,120]
[423098185,1779841862000,-6888.0,0.00041999,120]
[423098196,1779841862000,-156.587,0.00041999,45]
[423098190,1779841862000,-160.0,0.00041999,120]
[423098186,1779841862000,-151.0,0.00041999,120]
[423098181,1779841862000,-1000.0,0.00041999,45]
[423098179,1779841862000,-1000.0,0.00041999,120]
[423098178,1779841862000,-500.0,0.00041999,120]
[423098188,1779841862000,-520.0,0.00041999,120]
[423098243,1779841863000,-73865.05498285,0.00042,120]
[423098233,1779841863000,-976811.53,0.00042,120]
[423098242,1779841863000,-778.0,0.0003303,2]
[423098241,1779841863000,-926134.94501715,0.00042,120]
[423098237,1779841863000,-1000000.0,0.00042,120]
[423098235,1779841863000,-189.92900045,0.00042,120]
[423098240,1779841863000,-30736.4859718,0.00042,120]
[423098238,1779841863000,-1000.0,0.00042,120]
[423098236,1779841863000,-19732.36991521,0.00042,30]
[423098239,1779841863000,-301249.0,0.00042,60]
[423098234,1779841863000,-150.9801278,0.00042,30]
[423098228,1779841863000,-2962.0,0.00042,60]
[423098229,1779841863000,-4868.0,0.00042,61]
[423098231,1779841863000,-66800.0,0.00042,120]
[423098225,1779841863000,-500.0,0.00042,45]
[423098230,1779841863000,-2900.7786694,0.00042,30]
[423098227,1779841863000,-1000.0,0.00042,30]
[423098224,1779841863000,-500.0,0.00042,45]
[423098223,1779841863000,-4595.7852874,0.00042,120]
[423098222,1779841863000,-1059.0,0.00042,61]
[423098232,1779841863000,-10000.0,0.00042,120]
[423098244,1779841863000,-440033.56642437,0.00042,120]
[423098226,1779841863000,-5000.0,0.00042,120]
[423098246,1779841863000,-778.0,0.0003303,2]
[423098221,1779841863000,-5000.0,0.00042,90]
[423098247,1779841863000,-500.0,0.0003303,2]
[423098269,1779841863000,-1121.09518927,0.00039304,120]
[423098267,1779841863000,-1121.09518927,0.00039304,120]
[423098268,1779841863000,-1121.09518927,0.00039304,120]
[423098266,1779841863000,-245.774391,0.00037808,7]
[423098264,1779841863000,-300.0,0.00035398,2]
[423098265,1779841863000,-300.0,0.00035398,2]
[423098270,1779841863000,-590.68004119,0.00039304,120]
[423098263,1779841863000,-500.0,0.0003303,2]
[423098259,1779841863000,-500.0,0.0003303,2]
[423098256,1779841863000,-778.0,0.0003303,2]
[423098260,1779841863000,-500.0,0.0003303,2]